[Event "Titled Tuesday Blitz December 27 Late 2022"]
[White "Theodorou, Nikolas"]
[Black "Movahed, Sina"]
[WhiteFideId "4262875"]
[BlackFideId "42520835"]
[WhiteElo "2591"]
[BlackElo "2340"]
[Result "1-0"]
[Round "11"]
[TimeControl "180+2"]
[Date "2022.12.27"]
[WhiteClock "0:00:10"]
[BlackClock "0:00:10"]

1. e4 {[%clk 0:03:00]}  c5 {[%clk 0:02:59]} 2. d4 {[%clk 0:03:01]}  cxd4 {[%clk 0:03:00]} 3. c3 {[%clk 0:03:01]}  Nf6 {[%clk 0:03:00]} 4. e5 {[%clk 0:03:02]}  Nd5 {[%clk 0:03:01]} 5. Bc4 {[%clk 0:03:02]}  Nb6 {[%clk 0:03:01]} 6. Bb3 {[%clk 0:03:03]}  d5 {[%clk 0:03:01]} 7. exd6 {[%clk 0:03:04]}  Qxd6 {[%clk 0:03:01]} 8. Nf3 {[%clk 0:03:05]}  Nc6 {[%clk 0:02:59]} 9. Ng5 {[%clk 0:03:05]}  e6 {[%clk 0:02:56]} 10. O-O {[%clk 0:03:05]}  Be7 {[%clk 0:02:55]} 11. Qh5 {[%clk 0:03:05]}  Bxg5 {[%clk 0:02:44]} 12. Bxg5 {[%clk 0:03:06]}  O-O {[%clk 0:02:44]} 13. Nd2 {[%clk 0:03:07]}  e5 {[%clk 0:02:40]} 14. Ne4 {[%clk 0:03:07]}  Qg6 {[%clk 0:02:39]} 15. Qxg6 {[%clk 0:03:08]}  hxg6 {[%clk 0:02:39]} 16. f4 {[%clk 0:03:09]}  Bf5 {[%clk 0:02:34]} 17. Nd6 {[%clk 0:03:05]}  e4 {[%clk 0:02:34]} 18. Rfe1 {[%clk 0:02:19]}  e3 {[%clk 0:01:54]} 19. Nxb7 {[%clk 0:02:10]}  Kh7 {[%clk 0:01:43]} 20. cxd4 {[%clk 0:01:44]}  Nxd4 {[%clk 0:01:40]} 21. Rxe3 {[%clk 0:01:43]}  f6 {[%clk 0:01:32]} 22. Bh4 {[%clk 0:01:43]}  a5 {[%clk 0:01:32]} 23. Nd6 {[%clk 0:01:33]}  a4 {[%clk 0:01:32]} 24. Bd1 {[%clk 0:01:33]}  Rfd8 {[%clk 0:01:23]} 25. Nxf5 {[%clk 0:01:32]}  Nxf5 {[%clk 0:01:23]} 26. Rh3 {[%clk 0:01:33]}  Nxh4 {[%clk 0:01:21]} 27. Rxh4+ {[%clk 0:01:34]}  Kg8 {[%clk 0:01:22]} 28. Rh3 {[%clk 0:01:07]}  Rd2 {[%clk 0:01:20]} 29. b3 {[%clk 0:00:57]}  a3 {[%clk 0:01:18]} 30. b4 {[%clk 0:00:56]}  Kf7 {[%clk 0:00:40]} 31. Bb3+ {[%clk 0:00:55]}  Ke7 {[%clk 0:00:40]} 32. Rh7 {[%clk 0:00:50]}  Kd6 {[%clk 0:00:36]} 33. Rxg7 {[%clk 0:00:48]}  Nd5 {[%clk 0:00:34]} 34. Rxg6 {[%clk 0:00:36]}  Rc8 {[%clk 0:00:32]} 35. Re1 {[%clk 0:00:27]}  Rc3 {[%clk 0:00:21]} 36. Rg8 {[%clk 0:00:27]}  Rxb3 {[%clk 0:00:11]} 37. axb3 {[%clk 0:00:28]}  a2 {[%clk 0:00:12]} 38. Rc8 {[%clk 0:00:13]}  Nxb4 {[%clk 0:00:10]} 39. Rd8+ {[%clk 0:00:10]} 1-0


[Site "https://www.chess.com"]

[Event "Titled Tuesday Blitz December 27 Late 2022"]
[White "Toncheva, Nadya"]
[Black "Arencibia Monduy, Antonio"]
[WhiteFideId "2924056"]
[BlackFideId "3507939"]
[WhiteElo "2295"]
[BlackElo "2122"]
[Result "1-0"]
[Round "11"]
[TimeControl "180+2"]
[Date "2022.12.27"]
[WhiteClock "0:00:33"]
[BlackClock "0:00:06"]

1. e4 {[%clk 0:03:00]}  c5 {[%clk 0:02:59]} 2. Nf3 {[%clk 0:02:58]}  e6 {[%clk 0:02:57]} 3. d4 {[%clk 0:02:58]}  cxd4 {[%clk 0:02:57]} 4. Nxd4 {[%clk 0:02:58]}  Nc6 {[%clk 0:02:57]} 5. Nc3 {[%clk 0:02:54]}  a6 {[%clk 0:02:54]} 6. Be3 {[%clk 0:02:49]}  Qc7 {[%clk 0:02:54]} 7. g4 {[%clk 0:02:49]}  b5 {[%clk 0:02:50]} 8. Nxc6 {[%clk 0:02:45]}  dxc6 {[%clk 0:02:49]} 9. Bg2 {[%clk 0:02:28]}  e5 {[%clk 0:02:39]} 10. h3 {[%clk 0:02:16]}  Nf6 {[%clk 0:02:35]} 11. Qd2 {[%clk 0:02:15]}  Be6 {[%clk 0:02:34]} 12. O-O-O {[%clk 0:02:10]}  Be7 {[%clk 0:02:34]} 13. f4 {[%clk 0:02:05]}  Rd8 {[%clk 0:02:07]} 14. Qf2 {[%clk 0:02:03]}  exf4 {[%clk 0:01:50]} 15. Bxf4 {[%clk 0:01:54]}  Qc8 {[%clk 0:01:43]} 16. Rxd8+ {[%clk 0:01:48]}  Qxd8 {[%clk 0:01:43]} 17. Rd1 {[%clk 0:01:44]}  Qc8 {[%clk 0:01:29]} 18. Qa7 {[%clk 0:01:16]}  Bb4 {[%clk 0:01:28]} 19. a3 {[%clk 0:01:01]}  Bxc3 {[%clk 0:01:22]} 20. Bd6 {[%clk 0:01:00]}  Nd7 {[%clk 0:01:02]} 21. bxc3 {[%clk 0:00:58]}  f6 {[%clk 0:00:44]} 22. e5 {[%clk 0:00:56]}  fxe5 {[%clk 0:00:38]} 23. Be4 {[%clk 0:00:50]}  Kf7 {[%clk 0:00:30]} 24. Rf1+ {[%clk 0:00:49]}  Kg8 {[%clk 0:00:30]} 25. Bxc6 {[%clk 0:00:34]}  Qxc6 {[%clk 0:00:17]} 26. Qb8+ {[%clk 0:00:33]}  Nxb8 {[%clk 0:00:06]} 27. Rf8# {[%clk 0:00:33]} 1-0


[Site "https://www.chess.com"]

[Event "Titled Tuesday Blitz December 27 Late 2022"]
[White "Torres Dominguez, David"]
[Black "Sadilek, Peter"]
[WhiteFideId "2220857"]
[BlackFideId "1616439"]
[WhiteElo "1994"]
[BlackElo "2314"]
[Result "1-0"]
[Round "11"]
[TimeControl "180+2"]
[Date "2022.12.27"]
[WhiteClock "0:01:39"]
[BlackClock "0:02:13"]

1. e4 {[%clk 0:03:00]}  e6 {[%clk 0:02:57]} 2. d4 {[%clk 0:02:59]}  d5 {[%clk 0:02:58]} 3. exd5 {[%clk 0:02:59]}  exd5 {[%clk 0:02:58]} 4. Bd3 {[%clk 0:03:00]}  c5 {[%clk 0:02:57]} 5. Nf3 {[%clk 0:02:59]}  Nc6 {[%clk 0:02:58]} 6. O-O {[%clk 0:02:58]}  c4 {[%clk 0:02:56]} 7. Re1+ {[%clk 0:02:58]}  Be6 {[%clk 0:02:56]} 8. Bf1 {[%clk 0:02:58]}  Bd6 {[%clk 0:02:56]} 9. Bxc4 {[%clk 0:02:33]}  dxc4 {[%clk 0:02:55]} 10. d5 {[%clk 0:02:30]}  Qd7 {[%clk 0:02:43]} 11. dxe6 {[%clk 0:02:24]}  fxe6 {[%clk 0:02:44]} 12. Ng5 {[%clk 0:02:18]}  O-O-O {[%clk 0:02:43]} 13. Qe2 {[%clk 0:02:14]}  Nd4 {[%clk 0:02:40]} 14. Qxc4+ {[%clk 0:02:13]}  Kb8 {[%clk 0:02:41]} 15. Be3 {[%clk 0:02:07]}  e5 {[%clk 0:02:37]} 16. Bxd4 {[%clk 0:02:00]}  exd4 {[%clk 0:02:38]} 17. Nf7 {[%clk 0:01:58]}  Rc8 {[%clk 0:02:34]} 18. Qb3 {[%clk 0:01:44]}  Nf6 {[%clk 0:02:13]} 19. Nxh8 {[%clk 0:01:44]}  Rxh8 {[%clk 0:02:14]} 20. Nd2 {[%clk 0:01:44]}  Ng4 {[%clk 0:02:13]} 21. h3 {[%clk 0:01:39]}  Rf8 {[%clk 0:02:13]} 1-0


[Site "https://www.chess.com"]

[Event "Titled Tuesday Blitz December 27 Late 2022"]
[White "Vaibhav Jayant Raut"]
[Black "Rasulov, Vugar"]
[WhiteFideId "5089034"]
[BlackFideId "13402390"]
[WhiteElo "2237"]
[BlackElo "2523"]
[Result "1-0"]
[Round "11"]
[TimeControl "180+2"]
[Date "2022.12.27"]
[WhiteClock "0:00:02"]
[BlackClock "0:01:11"]

1. d4 {[%clk 0:03:00]}  a5 {[%clk 0:03:00]} 2. Nf3 {[%clk 0:03:00]}  b6 {[%clk 0:03:01]} 3. e4 {[%clk 0:03:00]}  Bb7 {[%clk 0:03:01]} 4. Nc3 {[%clk 0:03:00]}  g6 {[%clk 0:03:02]} 5. h4 {[%clk 0:03:00]}  h6 {[%clk 0:03:02]} 6. Bf4 {[%clk 0:02:59]}  Bg7 {[%clk 0:03:02]} 7. Bd3 {[%clk 0:03:00]}  d6 {[%clk 0:03:03]} 8. Qe2 {[%clk 0:02:55]}  Nd7 {[%clk 0:03:03]} 9. Rd1 {[%clk 0:02:52]}  e6 {[%clk 0:03:01]} 10. O-O {[%clk 0:02:46]}  Qe7 {[%clk 0:03:01]} 11. Rfe1 {[%clk 0:02:43]}  Ngf6 {[%clk 0:03:02]} 12. e5 {[%clk 0:02:41]}  Nh5 {[%clk 0:03:01]} 13. exd6 {[%clk 0:02:38]}  cxd6 {[%clk 0:03:02]} 14. Bh2 {[%clk 0:02:37]}  O-O {[%clk 0:02:51]} 15. Nb5 {[%clk 0:02:32]}  e5 {[%clk 0:02:48]} 16. dxe5 {[%clk 0:02:25]}  Bxf3 {[%clk 0:02:49]} 17. Qxf3 {[%clk 0:02:22]}  Nxe5 {[%clk 0:02:44]} 18. Qe4 {[%clk 0:02:03]}  Rae8 {[%clk 0:02:37]} 19. Nc3 {[%clk 0:01:57]}  Nf6 {[%clk 0:02:34]} 20. Qe2 {[%clk 0:01:52]}  Nfg4 {[%clk 0:02:31]} 21. Bxe5 {[%clk 0:01:49]}  Nxe5 {[%clk 0:02:32]} 22. g3 {[%clk 0:01:45]}  f5 {[%clk 0:02:18]} 23. Bb5 {[%clk 0:01:40]}  Rc8 {[%clk 0:02:17]} 24. f4 {[%clk 0:01:35]}  Kh7 {[%clk 0:02:10]} 25. fxe5 {[%clk 0:01:27]}  dxe5 {[%clk 0:02:10]} 26. Rd7 {[%clk 0:01:21]}  Qc5+ {[%clk 0:02:10]} 27. Kh1 {[%clk 0:01:22]}  e4 {[%clk 0:02:10]} 28. h5 {[%clk 0:01:20]}  g5 {[%clk 0:02:09]} 29. Red1 {[%clk 0:01:15]}  Qe5 {[%clk 0:02:05]} 30. Kg2 {[%clk 0:01:01]}  e3 {[%clk 0:02:02]} 31. R1d5 {[%clk 0:00:56]}  Qe6 {[%clk 0:02:01]} 32. Bd3 {[%clk 0:00:53]}  Kh8 {[%clk 0:02:01]} 33. Qf3 {[%clk 0:00:50]}  f4 {[%clk 0:01:58]} 34. R7d6 {[%clk 0:00:42]}  Qe8 {[%clk 0:01:49]} 35. Ne4 {[%clk 0:00:40]}  Qe7 {[%clk 0:01:39]} 36. Rd7 {[%clk 0:00:37]}  Qe6 {[%clk 0:01:38]} 37. R7d6 {[%clk 0:00:29]}  Qe7 {[%clk 0:01:38]} 38. g4 {[%clk 0:00:27]}  e2 {[%clk 0:01:33]} 39. Bxe2 {[%clk 0:00:23]}  Rxc2 {[%clk 0:01:34]} 40. Rd2 {[%clk 0:00:24]}  Rxd2 {[%clk 0:01:32]} 41. Rxd2 {[%clk 0:00:25]}  Re8 {[%clk 0:01:31]} 42. Bd3 {[%clk 0:00:24]}  Qb4 {[%clk 0:01:30]} 43. Re2 {[%clk 0:00:21]}  Rd8 {[%clk 0:01:31]} 44. Nc3 {[%clk 0:00:17]}  Qd4 {[%clk 0:01:26]} 45. Bb1 {[%clk 0:00:14]}  a4 {[%clk 0:01:21]} 46. a3 {[%clk 0:00:14]}  Qc4 {[%clk 0:01:20]} 47. Qb7 {[%clk 0:00:08]}  Rf8 {[%clk 0:01:12]} 48. Qf3 {[%clk 0:00:07]}  b5 {[%clk 0:01:11]} 49. Kh3 {[%clk 0:00:05]}  b4 {[%clk 0:01:11]} 50. axb4 {[%clk 0:00:05]}  Qxb4 {[%clk 0:01:12]} 51. Qd3 {[%clk 0:00:05]}  Kg8 {[%clk 0:01:11]} 52. Ba2+ {[%clk 0:00:04]}  Kh8 {[%clk 0:01:09]} 53. Bb1 {[%clk 0:00:04]}  Kg8 {[%clk 0:01:10]} 54. Qh7+ {[%clk 0:00:05]}  Kf7 {[%clk 0:01:10]} 55. Bg6+ {[%clk 0:00:02]}  Kf6 {[%clk 0:01:11]} 56. Nd5# {[%clk 0:00:02]} 1-0


[Site "https://www.chess.com"]

[Event "Titled Tuesday Blitz December 27 Late 2022"]
[White "Vovk, Orest"]
[Black "Novikov, Evgenij"]
[WhiteFideId "14113490"]
[BlackFideId "4125380"]
[WhiteElo "2315"]
[BlackElo "2276"]
[Result "1-0"]
[Round "11"]
[TimeControl "180+2"]
[Date "2022.12.27"]
[WhiteClock "0:00:02"]
[BlackClock "0:00:01"]

1. h4 {[%clk 0:03:00]}  c6 {[%clk 0:02:58]} 2. h5 {[%clk 0:02:47]}  h6 {[%clk 0:02:58]} 3. Nc3 {[%clk 0:02:45]}  d5 {[%clk 0:02:56]} 4. e4 {[%clk 0:02:41]}  dxe4 {[%clk 0:02:55]} 5. Nxe4 {[%clk 0:02:38]}  Nd7 {[%clk 0:02:51]} 6. Qe2 {[%clk 0:02:37]}  Ndf6 {[%clk 0:02:49]} 7. Nf3 {[%clk 0:02:29]}  Nxe4 {[%clk 0:02:46]} 8. Qxe4 {[%clk 0:02:29]}  Nf6 {[%clk 0:02:47]} 9. Qh4 {[%clk 0:02:26]}  Bf5 {[%clk 0:02:42]} 10. c3 {[%clk 0:02:22]}  Bd3 {[%clk 0:02:34]} 11. Qd4 {[%clk 0:02:17]}  Bxf1 {[%clk 0:02:31]} 12. Qxd8+ {[%clk 0:02:15]}  Rxd8 {[%clk 0:02:30]} 13. Kxf1 {[%clk 0:02:16]}  Rd5 {[%clk 0:02:25]} 14. d4 {[%clk 0:02:06]}  Rxh5 {[%clk 0:02:20]} 15. Rg1 {[%clk 0:02:06]}  Rd5 {[%clk 0:02:16]} 16. c4 {[%clk 0:02:04]}  Rd8 {[%clk 0:02:15]} 17. b4 {[%clk 0:02:01]}  e6 {[%clk 0:02:10]} 18. Rb1 {[%clk 0:02:00]}  Be7 {[%clk 0:01:59]} 19. g4 {[%clk 0:02:00]}  g5 {[%clk 0:01:54]} 20. Be3 {[%clk 0:01:53]}  a6 {[%clk 0:01:43]} 21. Ne5 {[%clk 0:01:36]}  Bd6 {[%clk 0:01:31]} 22. b5 {[%clk 0:00:58]}  axb5 {[%clk 0:01:05]} 23. cxb5 {[%clk 0:00:58]}  Nd5 {[%clk 0:01:03]} 24. bxc6 {[%clk 0:00:55]}  Bxe5 {[%clk 0:01:00]} 25. dxe5 {[%clk 0:00:54]}  Nxe3+ {[%clk 0:00:59]} 26. fxe3 {[%clk 0:00:54]}  bxc6 {[%clk 0:01:00]} 27. Ke2 {[%clk 0:00:49]}  Ra8 {[%clk 0:00:56]} 28. Kf3 {[%clk 0:00:45]}  O-O {[%clk 0:00:53]} 29. Rgc1 {[%clk 0:00:42]}  Ra6 {[%clk 0:00:50]} 30. Rb7 {[%clk 0:00:38]}  Rc8 {[%clk 0:00:46]} 31. Rc2 {[%clk 0:00:34]}  Kg7 {[%clk 0:00:41]} 32. Ke4 {[%clk 0:00:28]}  Ra4+ {[%clk 0:00:40]} 33. Kf3 {[%clk 0:00:28]}  Ra5 {[%clk 0:00:41]} 34. Ke4 {[%clk 0:00:27]}  Kg6 {[%clk 0:00:32]} 35. Rf2 {[%clk 0:00:22]}  Ra4+ {[%clk 0:00:29]} 36. Kf3 {[%clk 0:00:22]}  f6 {[%clk 0:00:10]} 37. Kg3 {[%clk 0:00:15]}  f5 {[%clk 0:00:09]} 38. gxf5+ {[%clk 0:00:08]}  exf5 {[%clk 0:00:10]} 39. Re7 {[%clk 0:00:07]}  Rg4+ {[%clk 0:00:07]} 40. Kf3 {[%clk 0:00:07]}  Re4 {[%clk 0:00:06]} 41. Re6+ {[%clk 0:00:07]}  Kg7 {[%clk 0:00:06]} 42. Kg2 {[%clk 0:00:05]}  Rf8 {[%clk 0:00:05]} 43. Rxc6 {[%clk 0:00:03]}  Rxe3 {[%clk 0:00:06]} 44. Rc7+ {[%clk 0:00:04]}  Kg6 {[%clk 0:00:05]} 45. Rc6+ {[%clk 0:00:04]}  Kh5 {[%clk 0:00:05]} 46. e6 {[%clk 0:00:04]}  f4 {[%clk 0:00:05]} 47. Kf1 {[%clk 0:00:03]}  Re8 {[%clk 0:00:04]} 48. e7 {[%clk 0:00:02]}  R8xe7 {[%clk 0:00:04]} 49. Rh2+ {[%clk 0:00:02]}  Kg4 {[%clk 0:00:04]} 50. Rg2+ {[%clk 0:00:03]}  Kf3 {[%clk 0:00:04]} 51. Rf2+ {[%clk 0:00:02]}  Ke4 {[%clk 0:00:04]} 52. Rc4+ {[%clk 0:00:01]}  Kf5 {[%clk 0:00:04]} 53. Rb4 {[%clk 0:00:02]}  R7e5 {[%clk 0:00:04]} 54. Rb8 {[%clk 0:00:02]}  g4 {[%clk 0:00:04]} 55. Rf8+ {[%clk 0:00:02]}  Ke4 {[%clk 0:00:05]} 56. R8xf4+ {[%clk 0:00:02]}  Kd3 {[%clk 0:00:06]} 57. Rxg4 {[%clk 0:00:03]}  Re1+ {[%clk 0:00:04]} 58. Kg2 {[%clk 0:00:03]}  h5 {[%clk 0:00:04]} 59. Rg3+ {[%clk 0:00:03]}  Kd4 {[%clk 0:00:03]} 60. a4 {[%clk 0:00:03]}  Ra1 {[%clk 0:00:02]} 61. Rh3 {[%clk 0:00:02]}  Kd5 {[%clk 0:00:01]} 62. Rd3+ {[%clk 0:00:02]}  Ke6 {[%clk 0:00:01]} 63. Rd4 {[%clk 0:00:02]}  Ra3 {[%clk 0:00:01]} 64. Rdf4 {[%clk 0:00:02]} 1-0


[Site "https://www.chess.com"]

[Event "Titled Tuesday Blitz December 27 Late 2022"]
[White "Wang, Alexander J"]
[Black "Remolar Gallen, Jose"]
[WhiteFideId "30955270"]
[BlackFideId "2215187"]
[WhiteElo "1815"]
[BlackElo "2285"]
[Result "0-1"]
[Round "11"]
[TimeControl "180+2"]
[Date "2022.12.27"]
[WhiteClock "0:01:57"]
[BlackClock "0:01:16"]

1. e4 {[%clk 0:03:00]}  c5 {[%clk 0:02:59]} 2. Nf3 {[%clk 0:02:58]}  d6 {[%clk 0:02:59]} 3. d4 {[%clk 0:02:58]}  cxd4 {[%clk 0:03:00]} 4. Nxd4 {[%clk 0:02:59]}  Nf6 {[%clk 0:03:01]} 5. Nc3 {[%clk 0:02:59]}  a6 {[%clk 0:03:01]} 6. g3 {[%clk 0:02:59]}  e5 {[%clk 0:03:00]} 7. Nde2 {[%clk 0:02:58]}  h5 {[%clk 0:02:59]} 8. Be3 {[%clk 0:02:58]}  h4 {[%clk 0:02:59]} 9. Bg2 {[%clk 0:02:50]}  h3 {[%clk 0:02:52]} 10. Bf3 {[%clk 0:02:47]}  Bg4 {[%clk 0:02:52]} 11. Ng1 {[%clk 0:02:41]}  Be6 {[%clk 0:02:47]} 12. Nge2 {[%clk 0:02:40]}  Nbd7 {[%clk 0:02:39]} 13. Nd5 {[%clk 0:02:40]}  Bxd5 {[%clk 0:02:38]} 14. exd5 {[%clk 0:02:41]}  e4 {[%clk 0:02:39]} 15. Bxe4 {[%clk 0:02:36]}  Nxe4 {[%clk 0:02:39]} 16. Qd4 {[%clk 0:02:35]}  Nef6 {[%clk 0:02:36]} 17. Nf4 {[%clk 0:02:36]}  Be7 {[%clk 0:02:34]} 18. a4 {[%clk 0:02:33]}  Qc7 {[%clk 0:02:33]} 19. c3 {[%clk 0:02:32]}  Rc8 {[%clk 0:02:33]} 20. O-O {[%clk 0:02:31]}  Ne5 {[%clk 0:02:33]} 21. Kh1 {[%clk 0:02:29]}  Qc4 {[%clk 0:02:20]} 22. Qxc4 {[%clk 0:02:28]}  Nxc4 {[%clk 0:02:08]} 23. Bd4 {[%clk 0:02:26]}  Nd2 {[%clk 0:02:00]} 24. Rfe1 {[%clk 0:02:23]}  Kd7 {[%clk 0:01:58]} 25. Rad1 {[%clk 0:02:21]}  Nf3 {[%clk 0:01:57]} 26. Re3 {[%clk 0:02:21]}  Nxd4 {[%clk 0:01:56]} 27. Rxd4 {[%clk 0:02:22]}  Ng4 {[%clk 0:01:49]} 28. Re2 {[%clk 0:02:20]}  Bf6 {[%clk 0:01:47]} 29. Rb4 {[%clk 0:02:18]}  Rce8 {[%clk 0:01:22]} 30. Rxb7+ {[%clk 0:02:15]}  Kc8 {[%clk 0:01:22]} 31. Rxf7 {[%clk 0:02:00]}  Rxe2 {[%clk 0:01:17]} 32. Nxe2 {[%clk 0:02:01]}  Re8 {[%clk 0:01:17]} 33. f3 {[%clk 0:01:57]}  Rxe2 {[%clk 0:01:16]} 34. fxg4 {[%clk 0:01:57]}  Re1# {[%clk 0:01:16]} 0-1


[Site "https://www.chess.com"]

[Event "Titled Tuesday Blitz December 27 Late 2022"]
[White "Yurovskykh, Oleksandr"]
[Black "Fernandez Garcia, Gumersindo"]
[WhiteFideId "14134020"]
[BlackFideId "24516740"]
[WhiteElo "2328"]
[BlackElo "2160"]
[Result "0-1"]
[Round "11"]
[TimeControl "180+2"]
[Date "2022.12.27"]
[WhiteClock "0:00:02"]
[BlackClock "0:00:16"]

1. d4 {[%clk 0:03:00]}  Nf6 {[%clk 0:02:58]} 2. Nf3 {[%clk 0:03:00]}  g6 {[%clk 0:02:53]} 3. Nbd2 {[%clk 0:02:59]}  d5 {[%clk 0:02:52]} 4. e3 {[%clk 0:02:58]}  Bg7 {[%clk 0:02:52]} 5. b4 {[%clk 0:02:55]}  O-O {[%clk 0:02:52]} 6. Be2 {[%clk 0:02:56]}  a5 {[%clk 0:02:51]} 7. b5 {[%clk 0:02:55]}  b6 {[%clk 0:02:44]} 8. O-O {[%clk 0:02:53]}  Bb7 {[%clk 0:02:42]} 9. a4 {[%clk 0:02:47]}  Nbd7 {[%clk 0:02:42]} 10. Ba3 {[%clk 0:02:46]}  Re8 {[%clk 0:02:35]} 11. c3 {[%clk 0:02:45]}  e5 {[%clk 0:02:31]} 12. Qb3 {[%clk 0:02:46]}  Ne4 {[%clk 0:02:23]} 13. Nxe4 {[%clk 0:02:40]}  dxe4 {[%clk 0:02:15]} 14. Nd2 {[%clk 0:02:40]}  Qg5 {[%clk 0:01:57]} 15. d5 {[%clk 0:02:25]}  Nf6 {[%clk 0:01:45]} 16. c4 {[%clk 0:02:24]}  h5 {[%clk 0:01:39]} 17. Qc2 {[%clk 0:02:22]}  Qf5 {[%clk 0:01:38]} 18. Rfe1 {[%clk 0:02:01]}  Bh6 {[%clk 0:01:34]} 19. Bf1 {[%clk 0:01:56]}  Rad8 {[%clk 0:01:25]} 20. g3 {[%clk 0:01:45]}  h4 {[%clk 0:01:19]} 21. Bg2 {[%clk 0:01:43]}  hxg3 {[%clk 0:01:11]} 22. hxg3 {[%clk 0:01:41]}  Kg7 {[%clk 0:01:08]} 23. Nxe4 {[%clk 0:01:33]}  Nxe4 {[%clk 0:01:08]} 24. Qxe4 {[%clk 0:01:34]}  Qxe4 {[%clk 0:00:53]} 25. Bxe4 {[%clk 0:01:35]}  Bg5 {[%clk 0:00:51]} 26. Kg2 {[%clk 0:01:35]}  f5 {[%clk 0:00:46]} 27. Bc2 {[%clk 0:01:34]}  Bf6 {[%clk 0:00:46]} 28. e4 {[%clk 0:01:30]}  f4 {[%clk 0:00:42]} 29. g4 {[%clk 0:01:19]}  f3+ {[%clk 0:00:40]} 30. Kxf3 {[%clk 0:01:09]}  Bc8 {[%clk 0:00:40]} 31. Kg3 {[%clk 0:01:02]}  Bg5 {[%clk 0:00:37]} 32. f3 {[%clk 0:00:59]}  Bf4+ {[%clk 0:00:36]} 33. Kg2 {[%clk 0:00:59]}  Rh8 {[%clk 0:00:23]} 34. Rh1 {[%clk 0:00:59]}  Bd7 {[%clk 0:00:23]} 35. Rxh8 {[%clk 0:00:57]}  Rxh8 {[%clk 0:00:23]} 36. Rh1 {[%clk 0:00:57]}  Rxh1 {[%clk 0:00:23]} 37. Kxh1 {[%clk 0:00:58]}  Be3 {[%clk 0:00:22]} 38. Kg2 {[%clk 0:00:58]}  Kf6 {[%clk 0:00:22]} 39. Kf1 {[%clk 0:00:52]}  g5 {[%clk 0:00:22]} 40. Ke2 {[%clk 0:00:52]}  Bc5 {[%clk 0:00:22]} 41. Bc1 {[%clk 0:00:21]}  Bd6 {[%clk 0:00:21]} 42. Bd2 {[%clk 0:00:20]}  Bc5 {[%clk 0:00:22]} 43. Kf1 {[%clk 0:00:19]}  Be8 {[%clk 0:00:20]} 44. Bd3 {[%clk 0:00:18]}  Bd7 {[%clk 0:00:21]} 45. Ke2 {[%clk 0:00:19]}  Be8 {[%clk 0:00:21]} 46. Be1 {[%clk 0:00:17]}  Bd7 {[%clk 0:00:22]} 47. Kf1 {[%clk 0:00:15]}  Be8 {[%clk 0:00:22]} 48. Kg2 {[%clk 0:00:16]}  Bd7 {[%clk 0:00:23]} 49. Be2 {[%clk 0:00:16]}  Be8 {[%clk 0:00:23]} 50. f4 {[%clk 0:00:17]}  exf4 {[%clk 0:00:21]} 51. Bc3+ {[%clk 0:00:17]}  Ke7 {[%clk 0:00:21]} 52. Kf3 {[%clk 0:00:15]}  Bg6 {[%clk 0:00:20]} 53. Bd3 {[%clk 0:00:15]}  Bb4 {[%clk 0:00:18]} 54. Be5 {[%clk 0:00:14]}  Bd6 {[%clk 0:00:17]} 55. Bg7 {[%clk 0:00:14]}  Bc5 {[%clk 0:00:16]} 56. Ke2 {[%clk 0:00:13]}  Kf7 {[%clk 0:00:16]} 57. Be5 {[%clk 0:00:13]}  Bd6 {[%clk 0:00:16]} 58. Bd4 {[%clk 0:00:13]}  Ke7 {[%clk 0:00:15]} 59. e5 {[%clk 0:00:11]}  Bxd3+ {[%clk 0:00:16]} 60. Kxd3 {[%clk 0:00:11]}  Bb4 {[%clk 0:00:17]} 61. Ke4 {[%clk 0:00:11]}  Bc5 {[%clk 0:00:15]} 62. Bc3 {[%clk 0:00:06]}  Bb4 {[%clk 0:00:15]} 63. Bb2 {[%clk 0:00:06]}  Bc5 {[%clk 0:00:14]} 64. e6 {[%clk 0:00:06]}  Bd6 {[%clk 0:00:14]} 65. Bg7 {[%clk 0:00:07]}  Bc5 {[%clk 0:00:14]} 66. Be5 {[%clk 0:00:06]}  Bd6 {[%clk 0:00:14]} 67. Bd4 {[%clk 0:00:03]}  Bc5 {[%clk 0:00:15]} 68. Bxc5+ {[%clk 0:00:03]}  bxc5 {[%clk 0:00:16]} 69. b6 {[%clk 0:00:04]}  cxb6 {[%clk 0:00:16]} 70. Ke5 {[%clk 0:00:04]}  f3 {[%clk 0:00:16]} 71. d6+ {[%clk 0:00:04]}  Ke8 {[%clk 0:00:16]} 72. d7+ {[%clk 0:00:01]}  Ke7 {[%clk 0:00:16]} 73. Kd5 {[%clk 0:00:01]}  f2 {[%clk 0:00:16]} 74. Kc6 {[%clk 0:00:02]}  f1=Q {[%clk 0:00:16]} 75. Kc7 {[%clk 0:00:02]}  Qf4+ {[%clk 0:00:16]} 0-1